bitfinex-derivatives/quotes_BTCF0:USTF0_20250309
["timestamp","ask_amount","ask_price","bid_price","bid_amount"]
[1741551388084,0.1853601,83376.0,83375.0,0.0324]
[1741551388886,0.1853601,83376.0,83375.0,0.04301973]
[1741551389271,0.1199601,83376.0,83375.0,0.16298133]
[1741551389773,0.006,83377.0,83376.0,0.1199601]
[1741551389978,0.006,83377.0,83376.0,0.1506601]
[1741551390176,0.1199587,83377.0,83376.0,0.1506601]
[1741551390680,0.1199587,83377.0,83376.0,0.0307]
[1741551390984,0.1259587,83377.0,83376.0,0.1516601]
[1741551391179,0.1259587,83377.0,83376.0,0.0317]
[1741551391478,0.2199271,83400.0,83399.0,0.1199271]
[1741551391679,0.1199314,83396.0,83395.0,0.09164]
[1741551391878,0.1199357,83393.0,83391.0,0.00017986]
[1741551392081,0.1199357,83393.0,83392.0,0.1199322]
[1741551392275,0.1508357,83393.0,83392.0,0.1199322]
[1741551392478,0.1199371,83392.0,83391.0,0.00017986]
[1741551392681,0.2111371,83392.0,83391.0,0.00017986]
[1741551393376,0.00179936,83406.0,83398.0,0.1199285]
[1741551393576,0.3378301,83399.0,83398.0,0.1199285]
[1741551393778,0.3687301,83399.0,83398.0,0.1199285]
[1741551394282,0.3687301,83399.0,83398.0,0.11985255]
[1741551394682,0.2488,83399.0,83391.0,0.00017986]
[1741551394883,0.1199371,83392.0,83391.0,0.12011846]
[1741551395480,0.1199371,83392.0,83391.0,0.00017986]
[1741551395673,0.1510371,83392.0,83391.0,0.00017986]
[1741551395878,0.1500371,83392.0,83391.0,0.00017986]
[1741551396675,0.1510371,83392.0,83391.0,0.00117986]
[1741551397580,0.1510371,83392.0,83391.0,0.12111846]
[1741551397778,0.1510371,83392.0,83391.0,0.00117986]
[1741551398382,0.1510371,83392.0,83391.0,0.12111846]
[1741551398882,0.2432771,83392.0,83391.0,0.12111846]
[1741551399281,0.2432771,83392.0,83391.0,0.00117986]
[1741551399477,0.4611771,83392.0,83391.0,0.00117986]
[1741551400176,0.1199616,83375.0,83344.0,0.060003]
[1741551400382,0.1199961,83352.0,83351.0,0.1199952]
[1741551400584,0.0599921,83361.0,83360.0,0.0599902]
[1741551401181,0.1199846,83359.0,83356.0,0.0599938]
[1741551401381,0.1199875,83357.0,83356.0,0.0599938]
[1741551401582,0.1199932,83353.0,83352.0,0.00017986]
[1741551402084,0.1199932,83353.0,83352.0,0.12017456]
[1741551402291,0.1199932,83353.0,83352.0,0.00017986]
[1741551402786,0.1516932,83353.0,83352.0,0.00017986]
[1741551403176,0.1536932,83353.0,83352.0,0.00017986]
[1741551403987,0.1516932,83353.0,83352.0,0.00017986]
[1741551404185,0.1536932,83353.0,83352.0,0.00017986]
[1741551404389,0.3715932,83353.0,83352.0,0.00017986]
[1741551405589,0.7323932,83353.0,83352.0,0.00017986]
[1741551405783,0.3725932,83353.0,83352.0,0.00017986]
[1741551406289,0.7333932,83353.0,83352.0,0.00017986]
[1741551406983,0.8255132,83353.0,83352.0,0.00017986]
[1741551407796,0.6076132,83353.0,83352.0,0.00017986]
[1741551407983,0.6076132,83353.0,83349.0,0.08398]
[1741551407984,0.1199976,83350.0,83349.0,0.08398]
[1741551408179,0.1200076,83343.0,83342.0,0.00179976]
[1741551408384,0.5727276,83343.0,83342.0,0.00179976]
[1741551408884,0.5717276,83343.0,83342.0,0.00179976]
[1741551409488,0.5757276,83343.0,83342.0,0.00179976]
[1741551409886,0.6078276,83343.0,83342.0,0.00179976]
[1741551410294,0.0599995,83349.0,83342.0,0.00179976]
[1741551410295,0.06017887,83351.0,83347.0,0.0600007]
[1741551410500,0.1200004,83348.0,83347.0,0.0600007]
[1741551410890,0.1200062,83344.0,83343.0,0.1830076]
[1741551411087,0.2116062,83344.0,83343.0,0.1830076]
[1741551411796,0.2448062,83344.0,83343.0,0.1830076]
[1741551411982,0.2448062,83344.0,83343.0,0.063]
[1741551412294,0.1200076,83343.0,83342.0,0.00179976]
[1741551412593,0.1521076,83343.0,83342.0,0.00179976]
[1741551412795,0.1853076,83343.0,83342.0,0.00179976]
[1741551413689,0.1873076,83343.0,83342.0,0.00179976]
[1741551414092,0.19824591,83343.0,83342.0,0.00179976]
[1741551415290,0.19824591,83343.0,83334.0,0.03137997]
[1741551415291,0.1200192,83335.0,83334.0,0.00017997]
[1741551415498,0.1200393,83321.0,83320.0,0.4808408]
[1741551415691,0.2112793,83321.0,83320.0,0.4808408]
[1741551415893,0.0600153,83329.0,83328.0,0.0600118]
[1741551416091,0.0600153,83329.0,83328.0,0.4208118]
[1741551416493,0.0600153,83329.0,83328.0,0.0600118]
[1741551416893,0.0600153,83329.0,83328.0,0.0304]
[1741551417092,0.1200292,83328.0,83327.0,0.0309]
[1741551417293,0.1820292,83328.0,83327.0,0.0309]
[1741551418201,0.062,83328.0,83320.0,0.43597176]
[1741551418398,0.1200393,83322.0,83321.0,0.1813388]
[1741551418702,0.1200393,83322.0,83321.0,0.08401]
[1741551418894,0.5418393,83322.0,83321.0,0.08401]
[1741551419601,0.5418393,83322.0,83321.0,0.07601]
[1741551420190,0.1200393,83321.0,83320.0,7e-08]
[1741551420398,0.1528393,83321.0,83320.0,7e-08]
[1741551420590,0.3648393,83321.0,83320.0,7e-08]
[1741551420793,0.1200754,83296.0,83295.0,0.1509753]
[1741551421105,0.2114,83297.0,83296.0,0.1200754]
[1741551421308,0.1801043,83304.0,83303.0,0.1200624]
[1741551422000,0.1200667,83302.0,83301.0,0.0600338]
[1741551422196,0.1200739,83297.0,83296.0,0.07401486]
[1741551422501,0.1200797,83293.0,83292.0,0.1521804]
[1741551422699,0.1200797,83293.0,83292.0,0.5129804]
[1741551422899,0.1200797,83293.0,83292.0,0.3929]
[1741551423104,0.1200797,83293.0,83292.0,0.0321]
[1741551423906,0.1504797,83293.0,83292.0,0.0321]
[1741551424101,0.1504797,83293.0,83289.0,0.08404]
[1741551424102,0.120084,83290.0,83289.0,0.08404]
[1741551424590,0.120084,83290.0,83289.0,0.2041254]
[1741551424799,0.060041,83292.0,83291.0,0.1200811]
[1741551425301,0.060041,83292.0,83291.0,0.1516811]
[1741551426208,0.031,83300.0,83291.0,0.1516811]
[1741551426209,0.06021448,83301.0,83291.0,0.0316]
[1741551426417,0.09128,83300.0,83299.0,0.120071]
[1741551426709,0.211351,83300.0,83299.0,0.120071]
[1741551427202,0.243751,83300.0,83299.0,0.120071]
[1741551428203,0.275251,83300.0,83299.0,0.120071]
[1741551429207,0.211351,83300.0,83299.0,0.120071]
[1741551429509,0.120071,83300.0,83299.0,0.120071]
[1741551430301,0.152871,83300.0,83299.0,0.120071]
[1741551431006,0.152871,83300.0,83297.0,0.0600368]
[1741551431007,0.1200725,83298.0,83297.0,0.0600368]
[1741551431511,0.1200768,83295.0,83294.0,0.3608]
[1741551431808,0.1200768,83295.0,83291.0,0.1516823]
[1741551431809,0.1200811,83292.0,83291.0,0.1516826]
[1741551432910,0.1200811,83292.0,83291.0,0.0316]
[1741551433413,0.1200811,83292.0,83291.0,0.1516826]
[1741551434613,0.1522811,83292.0,83291.0,0.0316]
[1741551434814,0.1522811,83292.0,83289.0,0.08404]
[1741551434815,0.120084,83290.0,83289.0,0.08404]
[1741551435313,0.120084,83290.0,83276.0,0.09128]
[1741551435314,0.1201071,83274.0,83260.0,0.21256277]
[1741551435508,0.1201071,83274.0,83261.0,0.0308]
[1741551435709,0.0322,83275.0,83261.0,0.0308]
[1741551435911,0.0322,83275.0,83260.0,0.21256277]
[1741551435912,0.1201258,83261.0,83260.0,0.20579454]
[1741551436409,0.33602236,83261.0,83260.0,0.20579454]
[1741551436608,0.40122236,83261.0,83260.0,0.20579454]
[1741551436809,0.40122236,83261.0,83258.0,0.20579454]
[1741551436810,0.1201287,83259.0,83258.0,0.20579454]
[1741551437003,0.12886553,83259.0,83258.0,0.20579454]
[1741551437606,0.13328209,83259.0,83258.0,0.20579454]
[1741551438008,0.70756553,83259.0,83258.0,0.20579454]
[1741551438204,0.76896553,83259.0,83258.0,0.20579454]
[1741551439017,0.120133,83256.0,83255.0,0.0474985]
[1741551439213,0.790113,83256.0,83255.0,0.0474985]
[1741551439410,0.94452457,83256.0,83255.0,0.00542308]
[1741551439613,0.1201359,83254.0,83253.0,0.24676468]
[1741551440115,0.1201359,83254.0,83253.0,0.20468926]
[1741551440416,0.15484747,83254.0,83253.0,0.16261384]
[1741551441112,0.15484747,83254.0,83238.0,0.120159]
[1741551441113,0.120159,83239.0,83238.0,0.120159]
[1741551441411,0.211439,83239.0,83238.0,0.152359]
[1741551441611,0.273239,83239.0,83238.0,0.152359]
[1741551441905,0.273239,83239.0,83236.0,0.0600804]
[1741551442111,0.0600837,83233.0,83230.0,0.3608]
[1741551442315,0.1201691,83231.0,83230.0,0.4809677]
[1741551444121,0.09132,83233.0,83232.0,0.1201677]
[1741551444308,0.09132,83237.0,83236.0,0.1201619]
[1741551444616,0.063,83252.0,83240.0,0.1201561]
[1741551444914,0.1201421,83250.0,83245.0,0.4809489]
[1741551445116,0.00898896,83250.0,83245.0,0.4809489]
[1741551445924,0.120146,83247.0,83245.0,0.4809489]
[1741551446214,0.01775648,83262.0,83255.0,0.1201345]
[1741551446417,0.0600632,83261.0,83255.0,0.4809345]
[1741551446713,0.0600645,83259.0,83255.0,0.4809345]
[1741551446919,0.12193567,83256.0,83255.0,0.4809345]
[1741551447118,0.12193567,83256.0,83249.0,0.0600712]
[1741551447305,0.1802117,83252.0,83251.0,0.1201396]
[1741551447507,0.0600714,83250.0,83247.0,0.00018021]
[1741551447717,0.1201446,83248.0,83247.0,0.00018021]
[1741551447920,0.1201446,83248.0,83247.0,0.12032621]
[1741551448116,0.1831446,83248.0,83247.0,0.00018021]
[1741551448719,0.1831446,83248.0,83247.0,0.12032621]
[1741551449415,0.00278588,83248.0,83247.0,0.12032621]
[1741551449814,0.12293048,83248.0,83247.0,0.12032621]
[1741551450015,0.2116,83251.0,83250.0,0.1201417]
[1741551450215,0.423063,83251.0,83250.0,0.1201417]
[1741551451013,0.2116,83251.0,83250.0,0.1201417]
[1741551451318,0.01250852,83259.0,83255.0,0.1201345]
[1741551451517,0.0600588,83267.0,83255.0,0.4809345]
[1741551451709,0.0600614,83263.0,83256.0,0.1201295]
[1741551452016,0.120133,83257.0,83256.0,0.1201295]
[1741551452217,0.120133,83257.0,83256.0,0.2402596]
[1741551452616,0.0600649,83259.0,83255.0,0.3608]
[1741551452617,0.120133,83256.0,83255.0,0.3608]
[1741551452811,0.120133,83256.0,83249.0,0.03931877]
[1741551453012,0.1201417,83251.0,83250.0,0.1201404]
[1741551453411,0.1201446,83248.0,83247.0,0.00018021]
[1741551453809,0.1201446,83248.0,83247.0,0.12032621]
[1741551454216,0.1201446,83248.0,83247.0,0.00018021]
[1741551454516,0.3317446,83248.0,83247.0,0.00018021]
[1741551454825,0.3317446,83248.0,83228.0,0.09132]
[1741551454826,0.120159,83238.0,83228.0,0.3608]
[1741551455027,0.1802434,83236.0,83235.0,0.03]
[1741551455517,0.2430434,83236.0,83235.0,0.03]
[1741551455713,0.25170568,83236.0,83235.0,0.03]
[1741551457325,0.0600815,83236.0,83235.0,0.03]
[1741551458020,0.1228815,83236.0,83235.0,0.03]
[1741551458328,0.13133578,83236.0,83235.0,0.03]
[1741551458918,0.0600815,83236.0,83235.0,0.1501633]
[1741551459222,0.0600815,83236.0,83235.0,0.03]
[1741551459422,0.1237815,83236.0,83235.0,0.03]
[1741551460223,0.1237815,83236.0,83235.0,0.1501633]
[1741551460526,0.1237815,83236.0,83235.0,0.03]
[1741551461622,0.1237815,83236.0,83235.0,0.1501633]
[1741551461923,0.1237815,83236.0,83235.0,0.03]
[1741551462323,0.0637,83236.0,83227.0,0.08422116]
[1741551462520,0.120172,83229.0,83228.0,0.0614]
[1741551462721,0.211492,83229.0,83228.0,0.0614]
[1741551463326,0.211492,83229.0,83228.0,0.1815735]
[1741551464322,0.211492,83229.0,83228.0,0.0614]
[1741551465317,0.1201735,83228.0,83227.0,0.08422116]
[1741551465532,0.3967535,83228.0,83227.0,0.08422116]
[1741551466931,0.6476535,83228.0,83227.0,0.08422116]
[1741551467133,0.1201821,83222.0,83221.0,0.0315]
[1741551467430,0.2115421,83222.0,83221.0,0.0315]
[1741551468118,0.2115421,83222.0,83201.0,0.060106]
[1741551468119,0.15506,83222.0,83201.0,0.060106]
[1741551468318,0.1201951,83213.0,83212.0,0.0327]
[1741551468530,0.2115551,83213.0,83212.0,0.0327]
[1741551468932,0.2115551,83213.0,83212.0,0.1528966]
[1741551470134,0.21140902,83213.0,83212.0,0.1528966]
[1741551471824,0.21140902,83213.0,83212.0,0.0327]
[1741551472535,0.0600989,83212.0,83208.0,0.00180267]
[1741551472734,0.120211,83202.0,83201.0,0.1517125]
[1741551473036,0.423251,83202.0,83201.0,0.1517125]
[1741551473733,0.454451,83202.0,83201.0,0.1517125]
[1741551474233,0.454451,83202.0,83201.0,0.0315]
[1741551474728,0.454451,83202.0,83201.0,0.1517125]
[1741551477539,0.1821125,83201.0,83200.0,0.03231652]
[1741551478442,0.1202457,83178.0,83173.0,0.3608]
[1741551478741,0.2116057,83178.0,83177.0,0.12205041]
[1741551479441,0.2116057,83178.0,83177.0,0.15435041]
[1741551480039,0.2116057,83178.0,83177.0,0.03410331]
[1741551480938,0.2116057,83178.0,83177.0,0.15435041]
[1741551481439,0.09136,83178.0,83177.0,0.15435041]
[1741551481940,0.2116057,83178.0,83177.0,0.15435041]
[1741551482146,0.2116057,83178.0,83177.0,0.03410331]
[1741551482445,0.2116057,83178.0,83177.0,0.15435041]
[1741551482641,0.1202403,83182.0,83181.0,0.1202414]
[1741551482847,0.1202403,83182.0,83177.0,0.00180331]
[1741551482848,0.1202457,83178.0,83177.0,0.00180331]
[1741551483146,0.1202457,83178.0,83177.0,0.12205041]
[1741551483947,0.060122,83180.0,83179.0,0.1202442]
[1741551484245,0.21172,83183.0,83182.0,0.1202399]
[1741551484445,0.21172,83183.0,83182.0,0.4810399]
[1741551484954,0.3319585,83183.0,83180.0,0.0322]
[1741551485141,0.21172,83183.0,83182.0,0.1202399]
[1741551485646,0.1202399,83182.0,83181.0,0.0325]
[1741551485948,0.2115999,83182.0,83181.0,0.0325]
[1741551486143,0.28570002,83182.0,83181.0,0.0325]
[1741551486348,0.22010002,83182.0,83181.0,0.1527414]
[1741551486545,0.22010002,83182.0,83181.0,0.3933]
[1741551486750,0.25260002,83182.0,83181.0,0.0325]
[1741551487047,0.64650002,83182.0,83181.0,0.0325]
[1741551487244,0.28570002,83182.0,83181.0,0.0325]
[1741551487942,0.1202457,83178.0,83177.0,0.00180331]
[1741551489742,0.1825457,83178.0,83177.0,0.00180331]
[1741551490148,0.1202457,83178.0,83177.0,0.00180331]
[1741551491554,0.12025,83175.0,83163.0,0.0305]
[1741551491756,0.21205,83175.0,83164.0,0.0315]
[1741551491949,0.21205,83175.0,83166.0,0.1202625]
[1741551492154,0.21205,83175.0,83164.0,0.0315]
[1741551492351,0.57285,83175.0,83164.0,0.0315]
[1741551492557,0.57285,83175.0,83167.0,0.120261]
[1741551492859,0.57285,83175.0,83168.0,0.1517591]
[1741551493048,0.21205,83175.0,83168.0,0.0315]
[1741551493253,0.57285,83175.0,83168.0,0.0315]
[1741551493854,0.4526,83175.0,83148.0,0.060144]
[1741551494155,0.4810746,83158.0,83157.0,0.0315]
[1741551494351,0.4236746,83158.0,83157.0,0.0315]
[1741551495049,0.4559746,83158.0,83157.0,0.1517761]
[1741551495245,0.4559746,83158.0,83157.0,0.0315]
[1741551495457,0.3034,83158.0,83157.0,0.0315]
[1741551495655,0.2118,83158.0,83157.0,0.1517761]
[1741551499061,0.00888619,83176.0,83157.0,0.12294]
[1741551499062,0.09144,83170.0,83157.0,0.12294]
[1741551499361,0.12044334,83166.0,83165.0,0.4810645]
[1741551499962,0.12044334,83166.0,83165.0,0.1517645]
[1741551500160,0.12044334,83166.0,83165.0,0.0315]
[1741551500358,0.12044334,83166.0,83165.0,0.1517645]
[1741551500665,0.12044334,83166.0,83165.0,0.1825645]
[1741551501462,0.12044334,83166.0,83165.0,0.0623]
[1741551501855,0.18464334,83166.0,83165.0,0.0623]
[1741551502464,0.27604334,83166.0,83165.0,0.0623]
[1741551503368,0.27604334,83166.0,83165.0,0.1825645]
[1741551503864,0.27604334,83166.0,83165.0,0.0623]
[1741551504258,0.27604334,83166.0,83165.0,0.1825645]
[1741551504653,0.27604334,83166.0,83165.0,0.0623]
[1741551504859,0.0601354,83161.0,83153.0,0.3608]
[1741551505055,0.120279,83155.0,83154.0,0.2453007]
[1741551505968,0.1537,83160.0,83157.0,0.1202746]
[1741551506167,0.2116717,83160.0,83159.0,0.1202732]
[1741551506661,0.2116717,83160.0,83159.0,0.1847732]
[1741551508461,0.1224335,83164.0,83162.0,0.0601337]
[1741551508462,0.0601332,83164.0,83162.0,0.0601337]
[1741551508659,0.1804006,83164.0,83163.0,0.1854645]
[1741551508959,0.2718006,83164.0,83163.0,0.1854645]
[1741551509360,0.3336006,83164.0,83163.0,0.1854645]
[1741551509662,0.2718006,83164.0,83163.0,0.1854645]
[1741551510164,0.2718006,83164.0,83163.0,0.1854674]
[1741551510363,0.3326006,83164.0,83163.0,0.1854674]
[1741551511760,0.3326006,83164.0,83163.0,0.0652]
[1741551511959,0.3326006,83164.0,83163.0,0.1854674]
[1741551513064,0.2412006,83164.0,83163.0,0.1854674]
[1741551513275,0.3020006,83164.0,83163.0,0.1854674]
[1741551513465,0.2106006,83164.0,83163.0,0.1854674]
[1741551513663,0.3020006,83164.0,83163.0,0.1854674]
[1741551514869,0.3020006,83164.0,83163.0,0.0652]
[1741551515075,0.120279,83156.0,83155.0,0.1202779]
[1741551515262,0.120279,83156.0,83155.0,0.0638]
[1741551515768,0.183079,83156.0,83155.0,0.0638]
[1741551516470,0.183079,83156.0,83155.0,0.184079]
[1741551516672,0.120279,83156.0,83155.0,0.184079]
[1741551518273,0.151779,83156.0,83155.0,0.184079]
[1741551518666,0.184579,83156.0,83155.0,0.184079]
[1741551519767,0.19367699,83156.0,83155.0,0.184079]
[1741551521368,0.19367699,83156.0,83155.0,0.0638]
[1741551521567,0.40551699,83156.0,83155.0,0.0638]
[1741551521767,0.28523799,83156.0,83154.0,0.00039]
[1741551522074,0.120279,83155.0,83154.0,0.00039]
[1741551522576,0.183779,83155.0,83154.0,0.00039]
[1741551522767,0.1202934,83145.0,83122.0,0.00148]
[1741551522962,0.2116934,83145.0,83142.0,0.032]
[1741551523167,0.2116934,83145.0,83142.0,0.1522976]
[1741551523363,0.2116934,83145.0,83142.0,0.032]
[1741551523772,0.2116934,83145.0,83144.0,0.4810949]
[1741551524079,0.2116934,83145.0,83144.0,0.3608]
[1741551524271,0.2116934,83145.0,83144.0,0.4810949]
[1741551524670,0.2116934,83145.0,83144.0,0.5457949]
[1741551524977,0.0914,83145.0,83144.0,0.5457949]
[1741551525374,0.0601453,83147.0,83146.0,0.120292]
[1741551525674,0.1515453,83147.0,83146.0,0.120292]
[1741551526877,0.0601453,83147.0,83146.0,0.120292]
[1741551527078,0.1228,83150.0,83144.0,0.4871667]
[1741551527264,0.2116862,83150.0,83149.0,0.1202876]
[1741551527773,0.21184,83156.0,83148.0,0.0324]
[1741551527974,0.21184,83156.0,83155.0,0.481079]
[1741551528280,0.3321175,83156.0,83155.0,0.481079]
[1741551528875,0.3321175,83156.0,83155.0,0.546279]
[1741551529279,0.21184,83156.0,83155.0,0.546279]
[1741551530179,0.3321175,83156.0,83155.0,0.546279]
[1741551530870,0.21184,83156.0,83155.0,0.546279]
[1741551531471,0.3321175,83156.0,83155.0,0.546279]
[1741551532882,0.3321175,83156.0,83155.0,0.0652]
[1741551533469,0.3632175,83156.0,83155.0,0.0652]
[1741551533777,0.3944175,83156.0,83155.0,0.0652]
[1741551533973,0.3944175,83156.0,83155.0,0.185479]
[1741551534377,0.3944175,83156.0,83155.0,0.0652]
[1741551535173,0.120292,83147.0,83146.0,0.1202914]
[1741551535374,0.120292,83147.0,83146.0,0.1834914]
[1741551535892,0.183692,83147.0,83146.0,0.0632]
[1741551536885,0.183692,83147.0,83146.0,0.01780253]
[1741551538383,0.183692,83147.0,83146.0,0.13809453]
[1741551538679,0.0634,83147.0,83145.0,0.3608]
[1741551538869,0.1202949,83144.0,83143.0,0.0006]
[1741551539074,0.22113603,83144.0,83143.0,0.0006]
[1741551540585,0.22113603,83144.0,83143.0,0.1208963]
[1741551540786,0.22113603,83144.0,83143.0,0.1865963]
[1741551541286,0.22113603,83144.0,83143.0,0.0663]
[1741551542082,0.0914,83144.0,83143.0,0.1865963]
[1741551542883,0.2116949,83144.0,83143.0,0.1865963]
[1741551544181,0.2116949,83144.0,83143.0,0.0663]
[1741551544587,0.2435949,83144.0,83143.0,0.0663]
[1741551544990,0.2435949,83144.0,83143.0,0.0006]
[1741551545879,0.6043949,83144.0,83130.0,0.066]
[1741551546085,0.3608,83131.0,83123.0,0.3608]
[1741551546275,0.1203224,83125.0,83124.0,0.066]
[1741551546690,0.1203224,83125.0,83116.0,0.00180462]
[1741551546691,0.1203339,83117.0,83116.0,0.00180462]
[1741551546985,0.1203339,83117.0,83116.0,0.1527354]
[1741551546986,0.2117339,83117.0,83116.0,0.1527354]
[1741551547188,0.22105583,83117.0,83116.0,0.1527354]
[1741551547982,0.22105583,83117.0,83116.0,0.1859354]
[1741551548393,0.25355583,83117.0,83116.0,0.1859354]
[1741551549482,0.25355583,83117.0,83116.0,0.0332]
[1741551549784,0.1239,83117.0,83113.0,0.00043]
[1741551549986,0.2442339,83117.0,83116.0,0.1203354]
[1741551551580,0.0914,83117.0,83116.0,0.1203354]
[1741551551779,0.2117339,83117.0,83116.0,0.1203354]
[1741551552487,0.0914,83117.0,83116.0,0.1203354]
[1741551552689,0.00018045,83125.0,83116.0,0.3608]
[1741551552886,0.00018045,83125.0,83124.0,0.4811238]
[1741551553992,0.00018045,83125.0,83124.0,0.5433238]
[1741551554578,0.12050285,83125.0,83124.0,0.5433238]
[1741551554787,0.00018045,83125.0,83124.0,0.5433238]
[1741551555685,0.12050285,83125.0,83124.0,0.5433238]
[1741551555888,0.00018045,83125.0,83124.0,0.5433238]
[1741551556389,0.12050285,83125.0,83124.0,0.5433238]
[1741551557188,0.00018045,83125.0,83124.0,0.5433238]
[1741551558995,0.12050285,83125.0,83124.0,0.5433238]
[1741551559493,0.00018045,83125.0,83124.0,0.5433238]
[1741551563797,0.01013128,83125.0,83124.0,0.5433238]
[1741551564287,0.13045368,83125.0,83124.0,0.5433238]
[1741551564482,0.12050285,83125.0,83124.0,0.5433238]
[1741551565287,0.12050285,83125.0,83124.0,0.0622]
[1741551565493,0.18360285,83125.0,83124.0,0.1825238]
[1741551565794,0.19349334,83125.0,83124.0,0.1825238]
[1741551566187,0.18360285,83125.0,83124.0,0.1825238]
[1741551566896,0.19366218,83125.0,83124.0,0.1825238]
[1741551567696,0.19366218,83125.0,83124.0,0.1521238]
[1741551567891,0.18360285,83125.0,83124.0,0.1521238]
[1741551568084,0.00018045,83125.0,83124.0,0.1825238]
[1741551568289,0.00018045,83125.0,83124.0,0.5433238]
[1741551569293,0.02803401,83147.0,83124.0,0.5433238]
[1741551569294,0.2720678,83144.0,83135.0,0.1203079]
[1741551569495,0.01128724,83149.0,83135.0,0.3608]
[1741551569684,0.01128724,83149.0,83148.0,0.1202891]
[1741551569890,0.1202876,83149.0,83148.0,0.1202891]
[1741551570093,0.0601427,83151.0,83150.0,0.1202862]
[1741551570400,0.3321845,83165.0,83164.0,0.1202659]
[1741551570598,0.1202674,83163.0,83162.0,0.481068]
[1741551570795,0.1202674,83163.0,83162.0,0.120268]
[1741551571100,0.1202761,83157.0,83156.0,0.1507775]
[1741551571294,0.1202761,83157.0,83156.0,0.1202775]
[1741551571595,0.09136,83162.0,83158.0,0.0601371]
[1741551571897,0.1202707,83161.0,83160.0,0.1202703]
[1741551572096,0.1521707,83161.0,83160.0,0.1202703]
[1741551573693,0.1202707,83161.0,83160.0,0.1202703]
[1741551574396,0.1530707,83161.0,83160.0,0.1202703]
[1741551575394,0.1851707,83161.0,83160.0,0.1202703]
[1741551579694,0.1202746,83159.0,83158.0,0.1202741]
[1741551580100,0.1846746,83159.0,83158.0,0.1804107]
[1741551580694,0.0644,83159.0,83158.0,0.1804107]
[1741551581093,0.21192,83165.0,83164.0,0.1202659]
[1741551581295,0.3321845,83165.0,83164.0,0.1202659]
[1741551582395,0.3646845,83165.0,83164.0,0.1202659]
[1741551590103,0.3646845,83165.0,83164.0,0.1506659]
[1741551590311,0.3646845,83165.0,83164.0,0.1202659]
[1741551590510,0.1202659,83164.0,83163.0,0.1212874]
[1741551590712,0.1504659,83164.0,83163.0,0.1212874]
[1741551590902,0.2741459,83164.0,83163.0,0.1539874]
[1741551592212,0.2741459,83164.0,83163.0,0.03372]
[1741551593909,0.2741459,83164.0,83163.0,0.00102]
[1741551594510,0.1202818,83153.0,83152.0,0.031]
[1741551594699,0.0601436,83150.0,83140.0,0.00983158]
[1741551594903,0.0601445,83148.0,83144.0,0.0911467]
[1741551595114,0.151692,83147.0,83146.0,0.120292]
[1741551595605,0.183492,83147.0,83146.0,0.120292]
[1741551596404,0.0632,83147.0,83143.0,0.3608]
[1741551596600,0.1202949,83144.0,83143.0,0.3608]
[1741551597013,0.09128,83144.0,83134.0,0.3608]
[1741551597215,0.1834963,83143.0,83140.0,0.2406001]
[1741551597415,0.1834963,83143.0,83141.0,0.1202991]
[1741551597812,0.1834963,83143.0,83139.0,0.00018]
[1741551598310,0.1203151,83130.0,83119.0,0.09128]
[1741551598511,0.5723951,83130.0,83121.0,0.1203272]
[1741551598903,0.0601621,83124.0,83112.0,0.0329]
[1741551599102,0.1203455,83110.0,83109.0,0.1203443]
[1741551599520,0.0313,83110.0,83109.0,0.1203443]
[1741551599714,0.1516441,83110.0,83109.0,0.1203443]
[1741551600316,0.1203484,83108.0,83107.0,0.0601739]
[1741551600724,0.1823484,83108.0,83107.0,0.0601739]
[1741551601215,0.062,83108.0,83106.0,0.3608]
[1741551601421,0.1203571,83101.0,83100.0,0.10180495]
[1741551601911,0.1203571,83101.0,83100.0,0.22216355]
[1741551602111,0.1847571,83101.0,83100.0,0.22216355]
[1741551602518,0.21188,83107.0,83106.0,0.1203499]
[1741551602715,0.3322284,83107.0,83106.0,0.4811499]
[1741551604314,0.21188,83107.0,83101.0,0.0331]
[1741551604620,0.1203571,83101.0,83100.0,0.1]
[1741551605207,0.1203571,83101.0,83100.0,0.2203586]
[1741551605413,0.1844571,83101.0,83100.0,0.2203586]
[1741551606117,0.19433496,83101.0,83100.0,0.1]
[1741551607114,0.55513496,83101.0,83100.0,0.1]
[1741551607616,0.19433496,83101.0,83100.0,0.1]
[1741551607812,0.1844571,83101.0,83100.0,0.1]
[1741551608019,0.0641,83101.0,83100.0,0.1]
[1741551608323,0.30316,83107.0,83100.0,0.4608]
[1741551608517,0.1203571,83101.0,83100.0,0.4608]
[1741551608720,0.1835519,83105.0,83101.0,0.0601779]
[1741551608917,0.0315,83105.0,83104.0,0.1203528]
[1741551609115,0.1203571,83101.0,83100.0,0.4624]
[1741551609312,0.1203571,83101.0,83100.0,0.4608]
[1741551609313,0.2116371,83101.0,83100.0,0.4608]
[1741551610613,0.2418371,83101.0,83100.0,0.1]
[1741551611808,0.2723371,83101.0,83100.0,0.1]
[1741551612022,0.2418371,83101.0,83100.0,0.2203586]
[1741551612920,0.2418371,83101.0,83100.0,0.1]
[1741551613110,0.2739371,83101.0,83100.0,0.1]
[1741551613917,0.2418371,83101.0,83100.0,0.1]
[1741551614219,0.2418371,83101.0,83100.0,0.2203586]
[1741551614522,0.2418371,83101.0,83100.0,0.1]
[1741551620221,0.24174492,83101.0,83100.0,0.1]
[1741551621024,0.24174492,83101.0,83100.0,0.03222976]
[1741551622324,0.15046492,83101.0,83100.0,0.03222976]
[1741551622626,0.24174492,83101.0,83100.0,0.03222976]
[1741551623015,0.24174492,83101.0,83100.0,0.00980568]
[1741551627725,0.1203658,83095.0,83094.0,0.0315]
[1741551628029,0.1203658,83095.0,83085.0,0.0319]
[1741551628030,0.1203788,83086.0,83085.0,0.0319]
[1741551628216,0.7844588,83086.0,83085.0,0.0319]
[1741551628927,0.1203846,83082.0,83081.0,0.0314]
[1741551629629,0.1204122,83063.0,83062.0,0.00180579]
[1741551629830,0.4236922,83063.0,83062.0,0.00180579]
[1741551630219,0.3121894,83063.0,83027.0,0.4210315]
[1741551630422,0.1204252,83054.0,83050.0,0.0319]
[1741551630621,0.2117052,83054.0,83050.0,0.0319]
[1741551631131,0.22226681,83054.0,83051.0,0.0314]
[1741551631827,0.58306681,83054.0,83051.0,0.0314]
[1741551632522,0.58306681,83054.0,83047.0,0.28614194]
[1741551632721,0.58306681,83054.0,83048.0,0.0633]
[1741551632917,0.58306681,83054.0,83051.0,0.1204286]
[1741551633121,0.58306681,83054.0,83051.0,0.0602141]
[1741551633326,0.58306681,83054.0,83053.0,0.33534635]
[1741551633327,0.22226681,83054.0,83053.0,0.33534635]
[1741551633726,0.22226681,83054.0,83053.0,0.39864635]
[1741551634126,0.22226681,83054.0,83053.0,0.1837267]